fUSD/lending_fUSD_20250115
["ID","MTS","AMOUNT","RATE_DAILY","PERIOD"]
[349018725,1736938262417,-500.0,0.00015749,2]
[349018726,1736938262427,-500.0,0.00015749,2]
[349018727,1736938262436,-500.0,0.0001575,2]
[349018728,1736938262446,-820.05,0.0001575,2]
[349018729,1736938262455,-538.51,0.0001575,2]
[349018730,1736938262464,-801.93,0.0001575,2]
[349018731,1736938262474,-1857.13,0.0001575,2]
[349018732,1736938262484,-915.0,0.0001575,2]
[349018733,1736938262493,-1219.96,0.0001575,2]
[349018734,1736938262504,-500.0,0.0001575,2]
[349018735,1736938262515,-500.0,0.0001575,2]
[349018736,1736938262524,-698.13,0.0001575,2]
[349018737,1736938262535,-563.37,0.0001575,2]
[349018738,1736938262545,-988.79,0.0001575,2]
[349018739,1736938262555,-692.48,0.0001575,2]
[349018740,1736938262565,-830.67,0.0001575,2]
[349018741,1736938262575,-433.56785243,0.0001575,2]
[349018742,1736938262585,-1104.25,0.0001575,2]
[349018743,1736938262595,-947.24,0.0001575,2]
[349018744,1736938262606,-1012.2,0.0001575,2]
[349018745,1736938262616,-538.24,0.00015752,2]
[349018746,1736938262627,-500.0,0.00015753,2]
[349018747,1736938262636,-14245.26314607,0.00015959,2]
[349018748,1736938262646,-2017.03,0.00016023,2]
[349018749,1736938262656,-2018.18,0.00016023,2]
[349018750,1736938262668,-892.74,0.00016023,2]
[349018751,1736938262677,-944.62,0.00016023,2]
[349018752,1736938262687,-500.0,0.00016023,2]
[349018753,1736938262697,-534.87,0.00016023,2]
[349018754,1736938262707,-550.27,0.00016023,2]
[349018755,1736938262716,-825.03,0.00016023,2]
[349018756,1736938262726,-523.43,0.00016023,2]
[349018757,1736938262735,-500.0,0.00016023,2]
[349018758,1736938262745,-500.0,0.00016023,2]
[349018759,1736938262755,-327.87,0.00016024,2]
[349018760,1736938262765,-801.93,0.00016024,2]
[349018761,1736938262775,-1857.13,0.00016024,2]
[349018762,1736938262785,-915.0,0.00016024,2]
[349018763,1736938262794,-1219.96,0.00016024,2]
[349018764,1736938262804,-500.0,0.00016024,2]
[349018765,1736938262814,-500.0,0.00016024,2]
[349018766,1736938262824,-698.13,0.00016024,2]
[349018767,1736938262834,-563.37,0.00016024,2]
[349018768,1736938262844,-988.79,0.00016024,2]
[349018769,1736938262853,-692.48,0.00016024,2]
[349018770,1736938262863,-830.67,0.00016024,2]
[349018771,1736938262873,-1104.25,0.00016024,2]
[349018772,1736938262883,-947.24,0.00016024,2]
[349018773,1736938262893,-538.24,0.00016026,2]
[349018774,1736938262903,-221.35,0.00016027,2]
[349018775,1736938262914,-500.0,0.00016164,2]
[349018776,1736938262923,-500.0,0.00016164,2]
[349018777,1736938262932,-500.0,0.00016164,2]
[349018778,1736938262942,-1100.32,0.000162,2]
[349018779,1736938262955,-701.51452252,0.0001621,2]
[349018780,1736938262965,-2264.249,0.00016213,2]
[349018781,1736938262975,-210.797,0.00016213,2]
[349018782,1736938262985,-2017.03,0.00016297,2]
[349018783,1736938262995,-2018.18,0.00016297,2]
[349018784,1736938263005,-892.74,0.00016297,2]
[349018785,1736938263015,-944.62,0.00016297,2]
[349018786,1736938263027,-265.66674082,0.00016297,2]
[349018787,1736938263038,-534.87,0.00016297,2]
[349018788,1736938263048,-825.03,0.00016297,2]
[349018789,1736938263058,-523.43,0.00016297,2]
[349018790,1736938263067,-500.0,0.00016297,2]
[349018791,1736938263077,-500.0,0.00016297,2]
[349018792,1736938263088,-801.93,0.00016298,2]
[349018793,1736938263098,-1857.13,0.00016298,2]
[349018794,1736938263107,-915.0,0.00016298,2]
[349018795,1736938263117,-1219.96,0.00016298,2]
[349018796,1736938263127,-212.05,0.00016298,2]
[349018797,1736938263137,-500.0,0.00016298,2]
[349018798,1736938263147,-698.13,0.00016298,2]
[349018799,1736938263160,-563.37,0.00016298,2]
[349018800,1736938263170,-988.79,0.00016298,2]
[349018801,1736938263181,-692.48,0.00016298,2]
[349018802,1736938263191,-830.67,0.00016298,2]
[349018803,1736938263202,-1104.25,0.00016298,2]
[349018804,1736938263213,-947.24,0.00016298,2]
[349018805,1736938263223,-538.24,0.000163,2]
[349018806,1736938263234,-500.0,0.00016438,2]
[349018807,1736938263244,-425.20605711,0.00016438,2]
[349018808,1736938263254,-2017.03,0.00016571,2]
[349018809,1736938263263,-2018.18,0.00016571,2]
[349018810,1736938263274,-892.74,0.00016571,2]
[349018811,1736938263285,-944.62,0.00016571,2]
[349018812,1736938263294,-534.87,0.00016571,2]
[349018813,1736938263305,-825.03,0.00016571,2]
[349018814,1736938263315,-523.43,0.00016571,2]
[349018815,1736938263325,-500.0,0.00016571,2]
[349018816,1736938263335,-592.64,0.00016571,2]
[349018817,1736938263345,-801.93,0.00016572,2]
[349018818,1736938263355,-1857.13,0.00016572,2]
[349018819,1736938263365,-915.0,0.00016572,2]
[349018820,1736938263374,-1219.96,0.00016572,2]
[349018821,1736938263385,-395.86908566,0.00016572,2]
[349018822,1736938263394,-698.13,0.00016572,2]
[349018823,1736938263405,-563.37,0.00016572,2]
[349018824,1736938263416,-988.79,0.00016572,2]
[349018825,1736938263427,-692.48,0.00016572,2]
[349018826,1736938263437,-830.67,0.00016572,2]
[349018827,1736938263447,-1104.25,0.00016572,2]
[349018828,1736938263458,-947.24,0.00016572,2]
[349018829,1736938263468,-538.24,0.00016574,2]
[349018830,1736938263477,-701.51452252,0.00016693,2]
[349018831,1736938263487,-2017.03,0.00016845,2]
[349018832,1736938263497,-2018.18,0.00016845,2]
[349018833,1736938263507,-892.74,0.00016845,2]
[349018834,1736938263517,-944.62,0.00016845,2]
[349018835,1736938263528,-534.87,0.00016845,2]
[349018836,1736938263538,-825.03,0.00016845,2]
[349018837,1736938263549,-523.43,0.00016845,2]
[349018838,1736938263560,-449.72,0.00016845,2]
[349018839,1736938263571,-801.93,0.00016846,2]
[349018840,1736938263581,-1857.13,0.00016846,2]
[349018841,1736938263591,-915.0,0.00016846,2]
[349018842,1736938263600,-1219.96,0.00016846,2]
[349018843,1736938263611,-698.13,0.00016846,2]
[349018844,1736938263620,-563.37,0.00016846,2]
[349018845,1736938263630,-988.79,0.00016846,2]
[349018846,1736938263640,-692.48,0.00016846,2]
[349018847,1736938263650,-830.67,0.00016846,2]
[349018848,1736938263661,-1104.25,0.00016846,2]
[349018849,1736938263671,-947.24,0.00016846,2]
[349018850,1736938263682,-538.24166971,0.00016848,2]
[349018851,1736938263693,-2017.0908614,0.00017119,2]
[349018852,1736938263703,-2018.4,0.00017119,2]
[349018853,1736938263714,-892.81404711,0.00017119,2]
[349018854,1736938263724,-944.83766377,0.00017119,2]
[349018855,1736938263734,-535.09,0.00017119,2]
[349018856,1736938263745,-825.19,0.00017119,2]
[349018857,1736938263754,-523.44,0.00017119,2]
[349018858,1736938263763,-801.95821613,0.0001712,2]
[349018859,1736938263773,-1857.34990346,0.0001712,2]
[349018860,1736938263784,-915.07,0.0001712,2]
[349018861,1736938263794,-1220.15,0.0001712,2]
[349018862,1736938263804,-698.36,0.0001712,2]
[349018863,1736938263815,-563.49,0.0001712,2]
[349018864,1736938263825,-988.91,0.0001712,2]
[349018865,1736938263835,-692.53399222,0.0001712,2]
[349018866,1736938263846,-830.68,0.0001712,2]
[349018867,1736938263856,-1104.43460762,0.0001712,2]
[349018868,1736938263865,-947.44,0.0001712,2]
[349018869,1736938263875,-701.51452252,0.00017176,2]
[349018870,1736938263886,-509.97,0.00017239,2]
[349018871,1736938263896,-153.0,0.00017252,2]
[349018872,1736938263908,-153.0,0.00017252,2]
[349018873,1736938263918,-153.0,0.00017252,2]
[349018874,1736938263928,-153.0,0.00017252,2]
[349018875,1736938263939,-153.0,0.00017252,2]
[349018876,1736938263952,-153.0,0.00017252,2]
[349018877,1736938263962,-153.0,0.00017252,2]
[349018878,1736938263971,-153.0,0.00017252,2]
[349018879,1736938263983,-153.0,0.00017252,2]
[349018880,1736938263994,-153.0,0.00017252,2]
[349018881,1736938264004,-153.0,0.00017252,2]
[349018882,1736938264013,-153.0,0.00017252,2]
[349018883,1736938264024,-153.0,0.00017252,2]
[349018884,1736938264035,-153.0,0.00017252,2]
[349018885,1736938264044,-153.0,0.00017252,2]
[349018886,1736938264054,-153.0,0.00017252,2]
[349018887,1736938264064,-153.0,0.00017252,2]
[349018888,1736938264074,-153.0,0.00017252,2]
[349018889,1736938264084,-153.0,0.00017252,2]
[349018890,1736938264094,-153.0,0.00017252,2]
[349018891,1736938264105,-153.0,0.00017252,2]
[349018892,1736938264116,-153.0,0.00017252,2]
[349018893,1736938264126,-153.0,0.00017252,2]
[349018894,1736938264136,-153.0,0.00017252,2]
[349018895,1736938264146,-153.0,0.00017252,2]
[349018896,1736938264156,-153.0,0.00017252,2]
[349018897,1736938264166,-153.0,0.00017252,2]
[349018898,1736938264176,-153.0,0.00017252,2]
[349018899,1736938264186,-153.0,0.00017252,2]
[349018900,1736938264196,-153.0,0.00017252,2]
[349018901,1736938264206,-153.0,0.00017252,2]
[349018902,1736938264216,-153.0,0.00017252,2]
[349018903,1736938264226,-153.0,0.00017252,2]
[349018904,1736938264236,-153.0,0.00017252,2]
[349018905,1736938264246,-153.0,0.00017252,2]
[349018906,1736938264255,-153.0,0.00017252,2]
[349018907,1736938264265,-153.0,0.00017252,2]
[349018908,1736938264275,-153.0,0.00017252,2]
[349018909,1736938264285,-153.0,0.00017252,2]
[349018910,1736938264295,-153.0,0.00017252,2]
[349018911,1736938264304,-153.0,0.00017252,2]
[349018912,1736938264314,-153.0,0.00017252,2]
[349018913,1736938264323,-153.0,0.00017252,2]
[349018914,1736938264332,-153.0,0.00017252,2]
[349018915,1736938264342,-153.0,0.00017252,2]
[349018916,1736938264354,-153.0,0.00017252,2]
[349018917,1736938264363,-153.0,0.00017252,2]
[349018918,1736938264372,-153.0,0.00017252,2]
[349018919,1736938264383,-153.0,0.00017252,2]
[349018920,1736938264393,-153.0,0.00017252,2]
[349018921,1736938264404,-153.0,0.00017252,2]
[349018922,1736938264419,-153.0,0.00017252,2]
[349018923,1736938264429,-153.0,0.00017252,2]
[349018924,1736938264439,-153.0,0.00017252,2]
[349018925,1736938264449,-153.0,0.00017252,2]
[349018926,1736938264459,-153.0,0.00017252,2]
[349018927,1736938264469,-153.0,0.00017252,2]
[349018928,1736938264479,-153.0,0.00017252,2]
[349018929,1736938264489,-153.0,0.00017252,2]
[349018930,1736938264499,-153.0,0.00017252,2]
[349018931,1736938264508,-153.0,0.00017252,2]
[349018932,1736938264519,-153.0,0.00017252,2]
[349018933,1736938264529,-153.0,0.00017252,2]
[349018934,1736938264538,-153.0,0.00017252,2]
[349018935,1736938264548,-153.0,0.00017252,2]
[349018936,1736938264558,-153.0,0.00017252,2]
[349018937,1736938264567,-153.0,0.00017252,2]
[349018938,1736938264577,-153.0,0.00017252,2]
[349018939,1736938264587,-153.0,0.00017252,2]
[349018940,1736938264597,-153.0,0.00017252,2]
[349018941,1736938264607,-153.0,0.00017252,2]
[349018942,1736938264618,-153.0,0.00017252,2]
[349018943,1736938264628,-153.0,0.00017252,2]
[349018944,1736938264638,-153.0,0.00017252,2]
[349018945,1736938264648,-153.0,0.00017252,2]
[349018946,1736938264657,-153.0,0.00017252,2]
[349018947,1736938264669,-153.0,0.00017252,2]
[349018948,1736938264679,-153.0,0.00017252,2]
[349018949,1736938264689,-153.0,0.00017252,2]
[349018950,1736938264699,-153.0,0.00017252,2]
[349018951,1736938264708,-153.0,0.00017252,2]
[349018952,1736938264717,-153.0,0.00017252,2]
[349018953,1736938264727,-153.0,0.00017252,2]
[349018954,1736938264736,-153.0,0.00017252,2]
[349018955,1736938264746,-153.0,0.00017252,2]
[349018956,1736938264756,-153.0,0.00017252,2]
[349018957,1736938264765,-153.0,0.00017252,2]
[349018958,1736938264775,-153.0,0.00017252,2]
[349018959,1736938264785,-153.0,0.00017252,2]
[349018960,1736938264795,-153.0,0.00017252,2]
[349018961,1736938264805,-153.0,0.00017252,2]
[349018962,1736938264814,-153.0,0.00017252,2]
[349018963,1736938264823,-153.0,0.00017252,2]
[349018964,1736938264833,-153.0,0.00017252,2]
[349018965,1736938264842,-153.0,0.00017252,2]
[349018966,1736938264852,-153.0,0.00017252,2]
[349018967,1736938264862,-153.0,0.00017252,2]
[349018968,1736938264872,-153.0,0.00017252,2]
[349018969,1736938264881,-153.0,0.00017252,2]
[349018970,1736938264891,-153.0,0.00017252,2]
[349018971,1736938264901,-153.0,0.00017252,2]
[349018972,1736938264912,-153.0,0.00017252,2]
[349018973,1736938264921,-153.0,0.00017252,2]
[349018974,1736938264931,-153.0,0.00017252,2]
[349018975,1736938264940,-153.0,0.00017252,2]
[349018976,1736938264954,-153.0,0.00017252,2]
[349018977,1736938264962,-153.0,0.00017252,2]
[349018978,1736938264971,-153.0,0.00017252,2]
[349018979,1736938264981,-153.0,0.00017252,2]
[349018980,1736938264992,-153.0,0.00017252,2]
[349018981,1736938265003,-153.0,0.00017252,2]
[349018982,1736938265012,-153.0,0.00017252,2]
[349018983,1736938265023,-153.0,0.00017252,2]
[349018984,1736938265033,-153.0,0.00017252,2]
[349018985,1736938265043,-153.0,0.00017252,2]
[349018986,1736938265053,-153.0,0.00017252,2]
[349018987,1736938265062,-153.0,0.00017252,2]
[349018988,1736938265072,-153.0,0.00017252,2]
[349018989,1736938265082,-153.0,0.00017252,2]
[349018990,1736938265091,-153.0,0.00017252,2]
[349018991,1736938265100,-153.0,0.00017252,2]
[349018992,1736938265110,-153.0,0.00017252,2]
[349018993,1736938265119,-153.0,0.00017252,2]
[349018994,1736938265129,-153.0,0.00017252,2]
[349018995,1736938265138,-153.0,0.00017252,2]
[349018996,1736938265147,-153.0,0.00017252,2]
[349018997,1736938265156,-153.0,0.00017252,2]
[349018998,1736938265167,-153.0,0.00017252,2]
[349018999,1736938265176,-153.0,0.00017252,2]
[349019000,1736938265186,-153.0,0.00017252,2]
[349019001,1736938265195,-153.0,0.00017252,2]
[349019002,1736938265205,-153.0,0.00017252,2]
[349019003,1736938265214,-153.0,0.00017252,2]
[349019004,1736938265224,-153.0,0.00017252,2]
[349019005,1736938265234,-153.0,0.00017252,2]
[349019006,1736938265245,-153.0,0.00017252,2]
[349019007,1736938265254,-153.0,0.00017252,2]
[349019008,1736938265410,-153.0,0.00017252,2]
[349019009,1736938265419,-153.0,0.00017252,2]
[349019010,1736938265428,-153.0,0.00017252,2]
[349019011,1736938265438,-153.0,0.00017252,2]
[349019012,1736938265448,-153.0,0.00017252,2]
[349019013,1736938265458,-153.0,0.00017252,2]
[349019014,1736938265468,-153.0,0.00017252,2]
[349019015,1736938265478,-153.0,0.00017252,2]
[349019016,1736938265488,-153.0,0.00017252,2]
[349019017,1736938265498,-153.0,0.00017252,2]
[349019018,1736938265508,-153.0,0.00017252,2]
[349019019,1736938265518,-153.0,0.00017252,2]
[349019020,1736938265528,-153.0,0.00017252,2]
[349019021,1736938265537,-153.0,0.00017252,2]
[349019022,1736938265547,-153.0,0.00017252,2]
[349019023,1736938265557,-153.0,0.00017252,2]
[349019024,1736938265566,-153.0,0.00017252,2]
[349019025,1736938265576,-153.0,0.00017252,2]
[349019026,1736938265586,-153.0,0.00017252,2]
[349019027,1736938265596,-153.0,0.00017252,2]
[349019028,1736938265606,-153.0,0.00017252,2]
[349019029,1736938265617,-153.0,0.00017252,2]
[349019030,1736938265627,-153.0,0.00017252,2]
[349019031,1736938265638,-153.0,0.00017252,2]
[349019032,1736938265647,-153.0,0.00017252,2]
[349019033,1736938265657,-153.0,0.00017252,2]
[349019034,1736938265668,-153.0,0.00017252,2]
[349019035,1736938265678,-153.0,0.00017252,2]
[349019036,1736938265687,-153.0,0.00017252,2]
[349019037,1736938265697,-500.0,0.00017315,2]
[349019038,1736938265707,-151.0,0.0001735,2]
[349019039,1736938265716,-187.16,0.00017352,2]
[349019040,1736938265726,-701.51452252,0.00017659,2]
[349019041,1736938265735,-1288.759,0.00017724,2]
[349019042,1736938265746,-2021.115,0.00017724,2]
[349019043,1736938265756,-639.379,0.00017724,2]
[349019044,1736938265765,-150.708,0.00017724,2]
[349019045,1736938265774,-566.0,0.00017724,2]
[349019046,1736938265784,-1861.0,0.00017724,2]
[349019047,1736938265794,-1259.0,0.00017724,2]
[349019048,1736938265803,-887.718,0.00017724,2]
[349019049,1736938265813,-821.0,0.00017724,2]
[349019050,1736938265823,-2944.0,0.00017724,2]
[349019051,1736938265834,-538.08,0.00017724,2]
[349019052,1736938265844,-3986.628,0.00017724,2]
[349019053,1736938265855,-3897.0,0.00017724,2]
[349019054,1736938265866,-268.523,0.00017724,2]
[349019055,1736938265875,-700.0,0.0001797,2]
[349019056,1736938265885,-700.0,0.0001797,2]
[349019057,1736938265894,-718.55976069,0.0001797,2]
[349019058,1736938265904,-2000.0,0.00018082,2]
[349019059,1736938265915,-701.51452252,0.00018141,2]
[349019060,1736938265924,-150.0,0.00018359,2]
[349019061,1736938265934,-150.0,0.00018512,2]
[349019062,1736938265944,-150.0,0.00018518,2]
[349019063,1736938265956,-150.0,0.00018532,2]
[349019064,1736938265965,-150.0,0.00018558,2]
[349019065,1736938265975,-150.0,0.00018578,2]
[349019066,1736938265985,-150.0,0.00018596,2]
[349019067,1736938265995,-150.0,0.00018607,2]
[349019068,1736938266005,-701.51452252,0.00018624,2]
[349019069,1736938266015,-150.0,0.00018628,2]
[349019070,1736938266025,-150.0,0.00018636,2]
[349019071,1736938266034,-150.0,0.00018639,2]
[349019072,1736938266043,-150.0,0.00018642,2]
[349019073,1736938266053,-150.0,0.00018652,2]
[349019074,1736938266063,-150.0,0.00018662,2]
[349019075,1736938266074,-373.39938888,0.00018679,2]
[349019076,1736938266083,-150.0,0.00018716,2]
[349019077,1736938266092,-150.0,0.00018731,2]
[349019078,1736938266102,-150.0,0.00018737,2]
[349019079,1736938266111,-2000.0,0.00018751,2]
[349019080,1736938266120,-700.0,0.0001877,2]
[349019081,1736938266129,-321.0,0.000188,6]
[349019082,1736938266139,-150.0,0.00018808,2]
[349019083,1736938266148,-150.0,0.0001881,2]
[349019084,1736938266157,-3757.26900033,0.0001882,2]
[349019085,1736938266168,-3757.26900023,0.0001882,2]
[349019086,1736938266178,-150.0,0.0001882,2]
[349019087,1736938266188,-150.0,0.00018827,2]
[349019088,1736938266197,-150.0,0.00018836,2]
[349019089,1736938266208,-150.0,0.00018837,2]
[349019090,1736938266219,-1500.0,0.00018841,2]
[349019091,1736938266229,-150.0,0.0001885,2]
[349019092,1736938266239,-150.0,0.00018884,2]
[349019093,1736938266249,-150.0,0.00018886,2]
[349019094,1736938266259,-1500.0,0.0001889,2]
[349019095,1736938266269,-3300.98,0.000189,7]
[349019096,1736938266280,-5800.0,0.000189,6]
[349019097,1736938266290,-500.0,0.00018904,2]
[349019098,1736938266300,-500.0,0.00018904,2]
[349019099,1736938266310,-150.0,0.00018907,2]
[349019100,1736938266321,-150.0,0.00018913,2]
[349019101,1736938266330,-1500.0,0.00018915,2]
[349019102,1736938266339,-150.0,0.00018932,2]
[349019103,1736938266348,-150.0,0.00018944,2]
[349019104,1736938266358,-150.0,0.00018946,2]
[349019105,1736938266368,-150.0,0.00018956,2]
[349019106,1736938266379,-1500.0,0.00018958,2]
[349019107,1736938266389,-150.0,0.00018959,2]
[349019108,1736938266399,-1500.0,0.00018962,2]
[349019109,1736938266409,-150.0,0.00018963,2]
[349019110,1736938266420,-150.0,0.00018975,2]
[349019111,1736938266430,-150.0,0.00018981,2]
[349019112,1736938266440,-8761.27597648,0.00019,3]
[349019113,1736938266451,-150.0,0.00019009,2]
[349019114,1736938266461,-150.0,0.00019016,2]
[349019115,1736938266471,-4690.33,0.00019023,2]
[349019116,1736938266481,-150.0,0.00019024,2]
[349019117,1736938266491,-150.0,0.00019025,2]
[349019118,1736938266500,-150.0,0.00019058,2]
[349019119,1736938266510,-150.0,0.0001909,2]
[349019120,1736938266520,-12500.0,0.00019098,2]
[349019121,1736938266531,-701.51452252,0.00019107,2]
[349019122,1736938266540,-150.0,0.00019108,2]
[349019123,1736938266550,-373.39938888,0.00019124,2]
[349019124,1736938266560,-150.0,0.00019128,2]
[349019125,1736938266571,-1414.98978279,0.00019133,2]
[349019126,1736938266580,-150.0,0.00019134,2]
[349019127,1736938266590,-150.0,0.00019146,2]
[349019128,1736938266599,-150.0,0.00019156,2]
[349019129,1736938266611,-150.0,0.00019164,2]
[349019130,1736938266620,-150.0,0.00019167,2]
[349019131,1736938266630,-150.0,0.00019178,2]
[349019132,1736938266640,-150.0,0.00019195,2]
[349019133,1736938266650,-150.0,0.00019195,2]
[349019134,1736938266660,-150.0,0.00019203,2]
[349019135,1736938266671,-150.0,0.00019212,2]
[349019136,1736938266681,-150.0,0.00019215,2]
[349019137,1736938266691,-153.63912973,0.00019215,2]
[349019138,1736938266701,-150.0,0.00019222,2]
[349019139,1736938266710,-150.0,0.00019236,2]
[349019140,1736938266719,-2503.45,0.00019241,2]
[349019141,1736938266728,-373.39938888,0.00019249,2]
[349019142,1736938266738,-1250.0,0.00019255,2]
[349019143,1736938266748,-150.0,0.00019257,2]
[349019144,1736938266758,-150.0,0.00019262,2]
[349019145,1736938266768,-1500.0,0.00019273,2]
[349019146,1736938266778,-150.0,0.00019275,2]
[349019147,1736938266788,-1500.0,0.00019279,2]
[349019148,1736938266799,-1500.0,0.00019282,2]
[349019149,1736938266808,-1500.0,0.00019294,2]
[349019150,1736938266818,-150.0,0.00019297,2]
[349019151,1736938266827,-150.0,0.00019298,2]
[349019152,1736938266837,-8554.51842332,0.000193,2]
[349019153,1736938266846,-321.0,0.000193,7]
[349019154,1736938266856,-150.0,0.00019304,2]
[349019155,1736938266866,-150.0,0.00019307,2]
[349019156,1736938266876,-150.0,0.00019309,2]
[349019157,1736938266885,-150.0,0.00019311,2]
[349019158,1736938266895,-150.0,0.00019312,2]
[349019159,1736938266904,-150.0,0.00019321,2]
[349019160,1736938266916,-150.82014531,0.0001933,2]
[349019161,1736938266926,-150.0,0.00019334,2]
[349019162,1736938266935,-150.0,0.0001934,2]
[349019163,1736938266945,-150.0,0.00019341,2]
[349019164,1736938266956,-150.0,0.00019349,2]
[349019165,1736938266965,-1500.0,0.00019376,2]
[349019166,1736938266975,-295.2812015,0.00019381,2]
[349019167,1736938266984,-150.0,0.00019382,2]
[349019168,1736938266995,-152.45540062,0.00019386,2]
[349019169,1736938267003,-2543.11,0.00019395,2]
[349019170,1736938267013,-150.0,0.000194,2]
[349019171,1736938267022,-150.0,0.00019403,2]
[349019172,1736938267032,-150.0,0.00019418,2]
[349019173,1736938267042,-500.0,0.0001942,2]
[349019174,1736938267051,-2000.0,0.0001942,2]
[349019175,1736938267060,-150.0,0.00019421,2]
[349019176,1736938267070,-150.0,0.00019436,2]
[349019177,1736938267080,-150.0,0.00019438,2]
[349019178,1736938267089,-150.0,0.0001944,2]
[349019179,1736938267098,-150.0,0.00019443,2]
[349019180,1736938267108,-150.0,0.00019446,2]
[349019181,1736938267117,-150.0,0.00019464,2]
[349019182,1736938267127,-700.0,0.0001947,2]
[349019183,1736938267137,-150.0,0.00019478,2]
[349019184,1736938267146,-509.97,0.00019494,2]
[349019185,1736938267155,-3000.0,0.000195,2]
[349019186,1736938267164,-231.0,0.000195,2]
[349019187,1736938267173,-149736.62365111,0.000195,5]
[349019188,1736938267184,-730.0,0.000195,2]
[349019189,1736938267194,-10005.0,0.000195,2]
[349019190,1736938267204,-1000.0,0.000195,2]
[349019191,1736938267214,-150.0,0.00019503,2]
[349019192,1736938267224,-2501.16,0.00019519,2]
[349019193,1736938267235,-150.0,0.00019524,2]
[349019194,1736938267244,-1500.0,0.00019526,2]
[349019195,1736938267254,-500.0,0.00019534,2]
[349019196,1736938267264,-1500.0,0.00019537,2]
[349019197,1736938267273,-373.3993889,0.0001956,2]
[349019198,1736938267282,-9794.0,0.00019562,2]
[349019199,1736938267292,-150.0,0.00019562,2]
[349019200,1736938267302,-150.0,0.00019571,2]
[349019201,1736938267312,-701.51452252,0.0001959,2]
[349019202,1736938267322,-93811.88085375,0.000196,2]
[349019203,1736938267332,-40762.43171931,0.00019603,14]
[349019204,1736938267342,-4851.88,0.00019603,2]
[349019205,1736938267351,-12500.0,0.00019604,2]
[349019206,1736938267362,-150.0,0.00019606,2]
[349019207,1736938267372,-150.0,0.0001961,2]
[349019208,1736938267382,-500.0,0.00019616,2]
[349019209,1736938267392,-150.0,0.00019634,2]
[349019210,1736938267401,-1509.21018382,0.0001966,2]
[349019211,1736938267410,-758.0,0.00019668,2]
[349019212,1736938267421,-500.0,0.00019672,2]
[349019213,1736938267430,-56475.8267,0.00019672,2]
[349019214,1736938267440,-605.14618481,0.00019673,2]
[349019215,1736938267450,-423.72195209,0.00019676,2]
[349019216,1736938267459,-500.0,0.00019676,2]
[349019217,1736938267469,-220.0,0.00019677,2]
[349019218,1736938267480,-1000.0,0.00019678,2]
[349019219,1736938267490,-1000.0,0.00019678,2]
[349019220,1736938267500,-1000.0,0.00019678,2]
[349019221,1736938267510,-1000.0,0.00019678,2]
[349019222,1736938267519,-1000.0,0.00019678,2]
[349019223,1736938267528,-1000.0,0.00019678,2]
[349019224,1736938267538,-1129.4016,0.00019678,2]